bitfinex/quotes_ETHUSD_20250810
["timestamp","ask_amount","ask_price","bid_price","bid_amount"]
[1754803339235,3.0,4235.6,4234.7,0.9364]
[1754803339450,4.59091476,4235.5,4234.7,0.9364]
[1754803339603,2.36127375,4235.1,4234.7,0.9364]
[1754803339798,3.665,4235.0,4234.7,0.9364]
[1754803339999,3.665,4235.0,4234.7,0.5]
[1754803340217,2.36094059,4235.6,4234.8,0.9364]
[1754803340420,2.36117057,4235.2,4234.8,0.9364]
[1754803340605,0.1184,4234.9,4234.8,0.9364]
[1754803340829,3.7834,4234.9,4234.6,1e-08]
[1754803341029,3.7834,4234.9,4234.6,2.36248606]
[1754803341340,3.665,4234.8,4234.7,0.9364]
[1754803342024,2.36144236,4234.7,4234.6,0.00100001]
[1754803342969,3.26992733,4234.7,4234.6,0.00100001]
[1754803343263,3.25974236,4234.7,4234.6,0.00100001]
[1754803343462,4.18835009,4234.7,4234.6,0.00100001]
[1754803343634,3.73685009,4234.7,4234.6,0.00100001]
[1754803344261,3.74703506,4234.7,4234.6,0.00100001]
[1754803344662,4.19853506,4234.7,4234.6,0.00100001]
[1754803345856,7.7027145,4234.7,4234.6,0.00100001]
[1754803346058,7.69252953,4234.7,4234.6,1e-08]
[1754803348273,10.90602953,4234.7,4234.6,1e-08]
[1754803348685,11.35752953,4234.7,4234.6,1e-08]
[1754803350758,11.35752953,4234.7,4234.3,1e-08]
[1754803350759,2.36160967,4234.4,4234.3,1e-08]
[1754803350993,10.74279357,4234.4,4234.3,1e-08]
[1754803351163,11.23678804,4234.4,4234.3,1e-08]
[1754803351368,12.13508804,4234.4,4234.3,1e-08]
[1754803352003,11.68358804,4234.4,4234.3,1e-08]
[1754803352994,12.25348804,4234.4,4234.3,1e-08]
[1754803353408,11.35518804,4234.4,4234.3,1e-08]
[1754803353896,12.25348804,4234.4,4234.3,1e-08]
[1754803354095,2.36194435,4233.8,4233.7,1e-08]
[1754803354266,14.70812932,4233.8,4233.7,1e-08]
[1754803354457,3.0,4233.7,4232.3,0.5548]
[1754803354690,2.36234642,4233.1,4232.3,0.4364]
[1754803354896,2.36216752,4233.4,4231.6,0.04]
[1754803354897,2.36261399,4232.6,4231.6,0.04]
[1754803355211,2.48151647,4231.7,4231.6,0.04]
[1754803355495,11.81751647,4231.7,4231.6,0.04]
[1754803355706,15.71581647,4231.7,4231.6,1e-08]
[1754803355889,13.3527,4231.7,4229.9,0.5]
[1754803356068,0.1184,4230.0,4229.9,0.5]
[1754803356270,13.75705688,4230.0,4227.4,0.5]
[1754803356462,3.794,4229.9,4227.7,0.5]
[1754803356665,6.16017797,4229.8,4227.8,0.02365296]
[1754803356908,5.70155292,4229.7,4227.0,1.891399]
[1754803357087,3.02955362,4229.6,4227.0,1.891399]
[1754803357266,8.03625379,4229.7,4227.5,2.36546406]
[1754803357469,5.672,4229.7,4227.7,10.09205688]
[1754803357755,3.801,4229.6,4228.5,3.0]
[1754803357961,5.672,4229.7,4228.7,3.0]
[1754803358173,3.801,4229.5,4227.1,2.36568257]
[1754803358469,3.801,4229.5,4226.5,0.4364]
[1754803358470,10.09205688,4229.1,4226.5,0.4364]
[1754803358671,0.8983,4229.6,4226.6,0.4364]
[1754803358672,2.36490341,4228.6,4226.6,0.4364]
[1754803358870,3.86156131,4228.5,4226.6,0.4364]
[1754803359060,2.36562507,4227.3,4226.7,0.5]
[1754803359386,2.3650726,4228.2,4226.7,0.5]
[1754803359387,6.1976436,4227.2,4226.7,0.5]
[1754803359538,3.832,4227.1,4226.7,0.5]
[1754803359870,3.832,4227.1,4226.8,0.4364]
[1754803360057,3.8615711,4227.1,4226.8,0.4364]
[1754803360259,3.0,4227.0,4225.9,0.4364]
[1754803360462,2.36614426,4226.3,4225.9,0.4364]
[1754803360630,3.846,4226.2,4226.0,0.12]
[1754803360829,3.845,4226.3,4226.2,2.36619185]
[1754803361062,3.846,4226.8,4226.7,2.36590913]
[1754803361242,3.846,4227.2,4226.7,1.40959089]
[1754803361443,3.846,4227.2,4227.1,2.36568806]
[1754803361749,3.848,4227.3,4227.1,0.9364]
[1754803361958,3.848,4227.3,4227.2,2.80203209]
[1754803362267,3.847,4227.3,4227.2,0.9364]
[1754803362473,3.847,4227.3,4226.8,0.4364]
[1754803362808,3.847,4227.3,4227.0,2.36572623]
[1754803363101,3.847,4227.3,4227.2,2.36563209]
[1754803363258,3.847,4227.3,4227.2,0.9364]
[1754803363642,0.17799723,4228.8,4227.3,2.36557613]
[1754803363980,8.07770796,4228.9,4227.2,0.9364]
[1754803363981,4.80013566,4228.7,4227.4,0.9364]
[1754803364186,3.851,4228.6,4227.5,0.9364]
[1754803364467,0.95013566,4228.7,4227.2,3.0]
[1754803364468,0.95013566,4228.7,4227.6,0.9364]
[1754803364653,5.713,4228.9,4227.2,5.36557847]
[1754803364654,3.85,4228.6,4228.5,2.36485784]
[1754803364995,3.85,4228.6,4228.5,0.9364]
[1754803365138,3.85,4228.6,4228.0,0.5]
[1754803365469,3.85,4228.6,4228.5,2.36490481]
[1754803365676,5.713,4228.9,4228.5,2.80130481]
[1754803365965,3.848,4228.8,4228.7,2.36479296]
[1754803366347,0.04,4228.9,4228.8,5.36473704]
[1754803366665,0.04,4228.9,4228.8,7.31057759]
[1754803366965,0.04,4228.9,4228.8,6.30113704]
[1754803367334,0.04,4228.9,4228.8,6.85113704]
[1754803367566,0.04,4228.9,4228.8,6.96953704]
[1754803368555,4.0024,4229.9,4229.6,2.36425855]
[1754803369069,4.0024,4229.9,4229.8,2.36417797]
[1754803369979,0.1584,4229.9,4229.8,2.81967797]
[1754803370195,0.1584,4229.9,4229.8,3.27197797]
[1754803370481,0.04,4229.9,4229.8,3.79036915]
[1754803371034,0.04,4229.9,4229.8,6.79036915]
[1754803372937,0.04,4229.9,4229.8,7.34036915]
[1754803374565,1e-08,4229.9,4229.8,7.34036915]
[1754803374765,1e-08,4229.9,4229.8,7.45876915]
[1754803375369,1e-08,4229.9,4229.8,15.82496462]
[1754803381892,1e-08,4229.9,4229.8,6.00096915]
[1754803382087,1e-08,4229.9,4229.8,2.48257797]
[1754803383204,1e-08,4229.9,4229.8,3.03257797]
[1754803383408,1e-08,4229.9,4229.8,2.48257797]
[1754803383611,0.96080001,4229.9,4228.6,0.4555]
[1754803383905,0.9608,4229.8,4229.2,2.36447106]
[1754803384107,0.9608,4229.8,4229.2,2.36450085]
[1754803384108,0.9608,4229.7,4229.2,2.36450085]
[1754803384409,0.9608,4229.6,4229.2,2.36447599]
[1754803384608,1e-08,4229.9,4229.2,2.36447599]
[1754803384902,0.9608,4229.8,4229.1,2.36455516]
[1754803385103,0.471,4229.7,4229.0,2.36461763]
[1754803385308,2.36429271,4229.6,4228.9,2.36468046]
[1754803385516,0.4898,4229.7,4229.1,2.36452997]
[1754803385718,0.471,4229.5,4228.6,3.0]
[1754803385881,0.471,4229.5,4229.1,2.36454824]
[1754803386082,0.9608,4229.4,4229.1,2.36454824]
[1754803386308,0.002,4229.8,4229.0,2.36461626]
[1754803386580,0.9608,4229.3,4229.2,2.36451338]
[1754803386976,0.9608,4229.3,4229.1,2.3645585]
[1754803387299,0.9608,4229.3,4229.1,2.36456858]
[1754803387481,0.471,4229.2,4229.1,2.36456858]
[1754803387723,0.471,4229.7,4229.3,2.36440682]
[1754803388015,0.4918,4229.8,4229.0,3.813]
[1754803388016,0.002,4229.8,4229.0,3.813]
[1754803388215,0.002,4229.8,4229.7,2.36423387]
[1754803389405,0.002,4229.8,4229.7,6.82203387]
[1754803389605,0.002,4229.8,4229.7,6.36973387]
[1754803389910,0.002,4229.8,4229.7,5.91423387]
[1754803390116,0.002,4229.8,4229.7,3.0]
[1754803390406,0.002,4229.8,4229.1,2.36451421]
[1754803390407,0.9628,4229.8,4229.1,2.36451421]
[1754803390608,1.29348788,4229.7,4229.0,2.36462102]
[1754803390806,0.471,4229.6,4229.3,2.36440466]
[1754803390985,0.4898,4229.7,4228.6,2.36484888]
[1754803391188,0.9608,4229.7,4228.3,4.2675]
[1754803391389,0.9608,4229.7,4228.4,3.55]
[1754803391709,0.9608,4229.7,4229.2,2.36448681]
[1754803392006,0.9608,4229.6,4229.1,2.36456897]
[1754803392185,0.002,4229.8,4229.1,2.36456897]
[1754803392393,0.9608,4229.5,4229.1,2.36456897]
[1754803392580,0.9608,4229.5,4229.0,3.0]
[1754803392581,0.471,4229.4,4229.0,2.36461004]
[1754803392775,0.002,4229.8,4229.1,2.36455515]
[1754803393003,0.9628,4229.8,4229.3,2.36445548]
[1754803393312,0.471,4229.7,4229.2,2.36450575]
[1754803393707,0.1184,4229.6,4229.0,2.48300859]
[1754803393909,0.1184,4229.6,4229.3,2.36445584]
[1754803394120,0.1184,4229.6,4229.1,2.36451344]
[1754803394327,0.9608,4229.5,4229.1,2.36451344]
[1754803394499,0.9608,4229.4,4229.1,2.36451344]
[1754803394695,0.9608,4229.4,4229.0,0.1184]
[1754803394894,0.9608,4229.4,4229.1,2.36456861]
[1754803395112,0.9608,4229.4,4229.2,2.36449803]
[1754803395308,0.471,4229.4,4229.2,2.36449803]
[1754803396391,0.471,4229.4,4229.0,2.48302209]
[1754803396392,0.471,4229.4,4229.0,0.1184]
[1754803396586,0.1184,4229.6,4229.3,2.36445741]
[1754803396811,0.1184,4229.6,4229.2,2.36450071]
[1754803397185,0.1184,4229.6,4229.0,0.1184]
[1754803397399,0.1184,4229.6,4229.2,2.36446626]
[1754803398125,0.1184,4229.6,4229.4,2.36438554]
[1754803398422,0.002,4229.8,4229.4,0.1184]
[1754803398592,0.002,4229.8,4229.5,2.36430438]
[1754803398793,0.002,4229.8,4229.6,2.36427381]
[1754803398996,0.002,4229.8,4229.5,2.36433118]
[1754803399623,0.4337,4229.8,4229.4,0.1184]
[1754803399803,0.4337,4229.8,4229.4,2.48278468]
[1754803399999,0.4337,4229.8,4229.5,2.36432878]
[1754803400728,0.4337,4229.8,4229.5,2.36434566]
[1754803401090,0.002,4229.8,4229.6,2.36426929]
[1754803401490,0.002,4229.8,4229.7,2.36423387]
[1754803401909,0.002,4229.8,4229.6,2.36427437]
[1754803402812,0.002,4229.8,4229.7,2.36423387]
[1754803403014,0.002,4229.8,4229.5,2.36434566]
[1754803403520,0.002,4229.8,4229.5,2.36432857]
[1754803403689,0.002,4229.8,4229.6,2.36428362]
[1754803403889,0.002,4229.8,4229.4,0.1184]
[1754803403890,0.4337,4229.8,4229.4,0.1184]
[1754803404115,0.9226,4229.8,4229.5,2.36433861]
[1754803404309,0.9226,4229.8,4229.4,0.1184]
[1754803404501,0.4317,4229.7,4229.5,2.36434014]
[1754803404701,0.4317,4229.7,4229.4,0.1184]
[1754803405209,0.4317,4229.7,4229.5,2.36434353]
[1754803405409,0.002,4229.8,4229.4,2.48277059]
[1754803405610,0.002,4229.8,4229.6,2.3642452]
[1754803405912,0.002,4229.8,4229.7,2.36423387]
[1754803406106,0.002,4229.8,4229.5,2.36432047]
[1754803406626,0.002,4229.8,4229.6,2.36426064]
[1754803407021,0.002,4229.8,4229.6,2.36427968]
[1754803407323,0.002,4229.8,4229.6,2.36428472]
[1754803407543,0.002,4229.8,4229.7,2.36423387]
[1754803407748,0.002,4229.8,4229.7,3.51733161]
[1754803407896,0.002,4229.8,4229.7,7.46673161]
[1754803410273,1e-08,4229.9,4229.8,5.91417797]
[1754803410398,1e-08,4229.9,4229.8,6.86357797]
[1754803412606,0.002,4230.8,4230.7,2.91367504]
[1754803412836,0.002,4230.8,4230.7,6.85981749]
[1754803413019,0.002,4230.8,4230.7,7.32751749]
[1754803415625,0.002,4230.8,4230.7,7.80921749]
[1754803415832,0.04,4231.9,4230.9,0.55]
[1754803416030,0.04,4231.9,4231.1,5.48185158]
[1754803416333,0.04,4231.9,4231.1,6.28857878]
[1754803416533,0.04,4231.9,4231.8,2.36306063]
[1754803416737,0.04,4231.9,4231.8,2.48146063]
[1754803417069,0.9606,4231.9,4231.8,2.48146063]
[1754803417868,0.04,4231.9,4231.8,2.91306063]
[1754803418171,0.04,4231.9,4231.8,3.03146063]
[1754803421463,0.04,4231.9,4231.8,3.51615837]
[1754803421663,0.04,4232.9,4232.8,2.36250236]
[1754803421860,0.04,4232.9,4232.8,5.91250236]
[1754803422062,0.9606,4232.9,4232.8,5.36250236]
[1754803422266,0.04,4232.9,4232.8,5.91250236]
[1754803422633,0.04,4232.9,4232.8,6.74024481]
[1754803423979,3.74656066,4234.7,4232.8,6.74024481]
[1754803423980,3.74656066,4234.7,4233.4,2.36216752]
[1754803424187,3.74656066,4234.7,4233.7,10.14524082]
[1754803424474,3.74656066,4234.7,4234.6,2.36149813]
[1754803424974,4.17826066,4234.7,4234.6,2.36149813]
[1754803425344,4.17826066,4234.7,4234.2,2.36167436]
[1754803425669,4.17826066,4234.7,4232.7,2.36251834]
[1754803425670,2.36155909,4234.5,4232.8,4.61874245]
[1754803425879,2.36155909,4234.5,4232.0,15.81824082]
[1754803425880,2.36194437,4233.8,4232.0,10.14524082]
[1754803426060,0.9206,4233.7,4232.0,10.14524082]
[1754803426238,2.36217229,4233.4,4232.3,2.36275393]
[1754803426435,3.74656066,4234.7,4232.2,3.0]
[1754803426636,2.36160967,4234.4,4233.5,2.3621086]
[1754803426941,2.36193971,4233.9,4233.0,2.36233595]
[1754803427176,2.36183852,4234.0,4233.2,2.36225644]
[1754803427337,0.9263,4233.9,4233.2,2.36225644]
[1754803427536,2.85539206,4233.9,4232.6,3.0]
[1754803427761,1.21183921,4233.8,4233.1,2.36228854]
[1754803427961,0.4328,4233.7,4233.0,2.36236527]
[1754803428262,0.9263,4233.7,4233.1,2.3623263]
[1754803428440,0.4935,4233.7,4233.1,2.3623263]
[1754803428645,0.4328,4233.6,4233.1,2.3623263]
[1754803428967,0.4935,4233.5,4233.2,2.3622356]
[1754803429272,0.9263,4233.4,4233.3,2.36221256]
[1754803430334,0.9263,4233.4,4233.2,2.36226449]
[1754803430533,0.4935,4233.4,4233.1,2.36232393]
[1754803430771,0.4328,4233.3,4233.2,2.36227912]
[1754803434643,0.9263,4233.3,4233.2,2.36227912]
[1754803434865,0.4328,4233.3,4233.2,2.36227912]
[1754803435067,0.1184,4233.4,4233.3,2.36222332]
[1754803438386,0.002,4233.5,4233.3,2.36222332]
[1754803438687,0.002,4233.5,4233.4,2.36216752]
[1754803438846,0.4328,4233.4,4233.0,0.1184]
[1754803439049,0.9263,4233.3,4233.0,0.1184]
[1754803439365,0.9263,4233.3,4231.6,0.5246]
[1754803439366,0.95582848,4233.2,4231.6,0.04]
[1754803439576,0.1184,4232.0,4231.6,0.04]
[1754803439775,0.39234,4233.5,4231.6,0.04]
[1754803439776,3.777,4232.3,4231.9,2.36300479]
[1754803439980,0.1184,4232.1,4232.0,2.36294896]
[1754803441081,0.4328,4233.2,4232.0,0.47259538]
[1754803441378,0.1184,4232.8,4232.7,2.36251375]
[1754803441882,3.777,4233.1,4233.0,2.36239073]
[1754803442564,3.777,4233.1,4233.0,2.84699073]
[1754803442770,3.777,4233.1,4233.0,2.96539073]
[1754803442945,0.002,4233.5,4233.4,2.36216752]
[1754803443377,0.002,4233.5,4233.1,3.0]
[1754803443578,0.4328,4233.4,4233.2,2.36223645]
[1754803444149,0.002,4233.5,4233.0,2.48079012]
[1754803444150,0.4328,4233.3,4233.0,2.36234083]
[1754803444483,0.5512,4233.2,4232.9,2.36239311]
[1754803444687,0.5512,4233.2,4232.6,0.1184]
[1754803444858,0.1184,4233.2,4232.6,0.1184]
[1754803445781,0.1184,4233.2,4232.8,2.36248841]
[1754803445983,0.1184,4233.2,4232.7,2.36255415]
[1754803446182,0.1184,4233.2,4232.0,0.47259538]
[1754803446183,0.4328,4233.2,4232.0,0.47259538]
[1754803446483,0.1184,4232.7,4232.4,2.3626871]
[1754803446984,0.1184,4232.7,4232.5,2.36264842]
[1754803447580,0.1184,4232.7,4232.1,3.0]
[1754803447780,0.1184,4232.7,4232.0,0.1184]
[1754803447982,0.1184,4232.7,4232.4,2.36267361]
[1754803448183,0.1184,4232.7,4232.2,2.36282563]
[1754803448483,0.4328,4232.6,4232.0,0.1184]
[1754803448795,0.4328,4232.6,4232.0,2.48134702]
[1754803449088,0.4328,4232.6,4232.2,2.36279557]
[1754803449592,0.4328,4232.5,4232.0,2.4812966]
[1754803449905,0.4328,4232.5,4231.5,0.001]
[1754803449906,2.48125425,4232.2,4231.6,0.1184]
[1754803450052,2.48125425,4232.2,4231.5,0.001]
[1754803450053,3.08050968,4232.2,4231.5,2.36422662]
[1754803450248,0.1184,4231.8,4231.5,0.001]
[1754803450452,0.1184,4231.8,4231.6,2.36317232]
[1754803450684,0.1184,4231.8,4231.7,2.36311647]
[1754803450982,0.1184,4231.8,4231.6,2.36316281]
[1754803451187,0.1184,4231.8,4231.6,2.3631186]
[1754803451388,0.1184,4231.8,4231.7,2.36311647]
[1754803451596,0.1184,4231.8,4231.5,2.3641874]
[1754803452006,0.1184,4231.8,4231.5,0.001]
[1754803452300,0.1184,4231.8,4231.5,2.36418861]
[1754803452999,0.1184,4231.8,4231.5,0.001]
[1754803453198,0.1184,4231.8,4231.7,2.36311647]
[1754803453375,0.1184,4232.3,4231.8,2.36301752]
[1754803453567,0.1184,4232.3,4231.8,2.36305105]
[1754803453771,0.1184,4232.3,4231.7,0.1184]
[1754803453772,3.764,4232.5,4231.9,0.4846]
[1754803454099,3.764,4232.5,4232.4,2.36272564]
[1754803454285,3.764,4232.5,4232.4,2.48112564]
[1754803454486,3.764,4232.5,4232.4,2.96551814]
[1754803454691,3.764,4232.5,4232.4,3.45011814]
[1754803456085,3.764,4232.5,4232.4,2.96551814]
[1754803457519,0.1184,4233.2,4232.5,2.36266981]
[1754803457692,3.761,4233.3,4233.2,2.36227912]
[1754803458771,0.1204,4233.5,4233.4,2.36216752]
[1754803458994,0.002,4233.5,4233.4,2.36216752]
[1754803463277,0.9636,4233.5,4233.2,0.1184]
[1754803463480,1.67006965,4233.4,4233.2,0.1184]
[1754803463787,1.78846965,4233.4,4232.9,2.36243229]
[1754803464110,0.4686,4233.3,4233.1,2.36233106]
[1754803464326,0.9616,4233.3,4232.8,0.1184]
[1754803464512,0.82686965,4233.4,4232.8,0.1184]
[1754803464513,0.9616,4233.2,4232.8,0.1184]
[1754803464685,0.17884697,4233.1,4232.7,2.36255503]
[1754803464885,3.751,4233.0,4232.7,2.36255503]
[1754803465288,0.4686,4232.9,4232.7,2.36255503]
[1754803466208,0.4686,4232.8,4232.6,0.1184]
[1754803466380,0.4686,4232.8,4232.2,0.1184]
[1754803466381,0.587,4232.8,4232.2,0.1184]
[1754803466787,0.4686,4232.7,4232.2,2.36282156]
[1754803467094,2.48110385,4232.5,4231.8,2.36305314]
[1754803467286,0.1184,4232.1,4231.7,3.0]
[1754803467488,0.493,4232.0,4231.8,2.36301169]
[1754803467822,0.4686,4231.9,4231.7,2.36310493]
[1754803467987,0.4686,4231.9,4231.6,2.36317232]
[1754803468187,3.751,4231.8,4231.7,2.36311647]
[1754803469918,0.1184,4232.1,4232.0,2.36294896]
[1754803470119,3.747,4232.1,4232.0,2.36294896]
[1754803470356,3.747,4232.1,4232.0,2.48134896]
[1754803470812,3.747,4232.1,4231.5,0.001]
[1754803471131,0.1184,4231.7,4231.5,0.001]
[1754803471497,0.9616,4231.6,4231.5,0.001]
[1754803472927,0.4686,4231.6,4231.5,2.36422816]
[1754803473099,0.4686,4232.0,4231.6,2.36317232]
[1754803473292,3.8644,4231.9,4231.5,0.001]
[1754803473924,0.4686,4232.4,4231.5,0.001]
[1754803474129,0.04,4233.9,4231.5,0.001]
[1754803474130,0.1184,4232.2,4232.1,2.36289312]
[1754803474309,3.745,4232.2,4232.1,2.36289312]
[1754803475245,0.587,4232.6,4232.0,0.1184]
[1754803475246,0.1184,4232.6,4232.5,2.36266981]
[1754803475533,3.8624,4232.6,4232.5,2.13262268]
[1754803475696,3.8624,4232.6,4232.5,2.08799067]
[1754803476030,3.744,4232.6,4232.4,2.32680465]
[1754803476230,3.744,4232.6,4232.5,2.30214793]
[1754803476599,4.2126,4232.6,4232.5,2.30214793]
[1754803477017,4.2126,4232.6,4232.3,2.36276292]
[1754803477217,0.9616,4232.5,4231.5,0.001]
[1754803477420,0.1184,4232.4,4232.2,2.3628241]
[1754803477617,1.08,4232.4,4232.2,2.3628241]
[1754803477822,0.4686,4232.3,4232.2,2.3628241]
[1754803478103,0.4686,4232.3,4232.2,2.1926165]
[1754803478302,0.02630143,4232.1,4232.0,2.362942]
[1754803478516,4.23890143,4232.1,4232.0,2.362942]
[1754803478732,4.26473961,4232.1,4232.0,2.362942]
[1754803480596,4.35823675,4232.1,4232.0,2.362942]
[1754803480904,4.42577842,4232.1,4232.0,2.362942]
[1754803481119,4.86141987,4232.1,4232.0,2.362942]
[1754803481324,5.29396681,4232.1,4232.0,2.362942]
[1754803481630,7.23149406,4232.1,4232.0,2.362942]
[1754803481837,7.51871938,4232.1,4232.0,2.362942]
[1754803484641,7.51871938,4232.1,4231.9,2.36298806]
[1754803485137,7.51871938,4232.1,4232.0,2.36294896]
[1754803486523,7.05011938,4232.1,4232.0,2.36294896]
[1754803492052,7.03446484,4232.1,4232.0,2.36294896]
[1754803492243,7.03446484,4232.1,4231.8,0.1184]
[1754803492421,7.03446484,4232.1,4232.0,2.36294896]
[1754803496324,3.29046484,4232.1,4232.0,14.80474199]
[1754803496531,3.29046484,4232.1,4232.0,14.35004199]
[1754803497024,3.29046484,4232.1,4232.0,14.35104199]
[1754803497247,7.00946484,4232.1,4232.0,2.36394896]
[1754803497448,7.45916484,4232.1,4232.0,2.36394896]
[1754803499359,3.29046484,4232.1,4232.0,2.36394896]
[1754803499655,3.29046484,4232.1,4232.0,6.16174896]
[1754803500384,2.8494645,4232.1,4232.0,10.42974896]
[1754803500555,0.002,4232.2,4232.1,5.91289312]
[1754803500722,0.002,4232.2,4232.1,6.71069312]
[1754803500922,0.002,4232.7,4232.6,2.36261399]
[1754803501137,0.002,4232.7,4232.6,13.56526714]
[1754803501322,0.002,4232.7,4232.6,14.01996714]
[1754803501524,0.002,4232.7,4232.6,13.56526714]
[1754803503481,3.716,4232.7,4232.6,5.36261399]
[1754803503677,4.6363,4232.7,4231.9,2.36299706]
[1754803503841,0.9203,4232.6,4231.9,2.36299706]
[1754803504170,0.9203,4232.6,4232.0,2.36393125]
[1754803504384,0.4497,4232.5,4232.0,2.36393125]
[1754803504541,3.716,4232.4,4232.1,2.36285399]
[1754803504748,0.9203,4232.3,4232.1,2.36285399]
[1754803505144,0.9203,4232.3,4232.2,2.36283729]
[1754803505777,0.9203,4232.3,4232.1,2.36289078]
[1754803505976,0.4497,4232.2,4232.1,2.36289078]
[1754803506180,0.4497,4232.2,4232.0,0.001]
[1754803506478,4.1637,4232.1,4232.0,2.36394896]
[1754803507463,3.714,4232.1,4232.0,2.36394896]
[1754803507864,3.714,4232.1,4232.0,2.84848977]
[1754803510655,4.1637,4232.1,4232.0,2.36394896]
[1754803512652,4.6343,4232.1,4232.0,2.36394896]
[1754803513862,4.1637,4232.1,4232.0,2.36394896]
[1754803514798,4.7527,4232.1,4232.0,0.001]
[1754803514999,7.11559312,4232.1,4232.0,0.001]
[1754803515203,7.59086312,4232.1,4232.0,0.001]
[1754803515365,5.22797,4232.1,4232.0,0.001]
[1754803518376,7.59086312,4232.1,4232.0,0.001]
[1754803520400,7.70926312,4232.1,4232.0,0.001]
[1754803520592,11.76209271,4232.1,4232.0,1e-08]
[1754803521101,11.98031834,4232.1,4232.0,1e-08]
[1754803521409,11.98012096,4232.1,4232.0,1e-08]
[1754803521706,11.98011034,4232.1,4232.0,1e-08]
[1754803521904,11.98812926,4232.1,4232.0,1e-08]
[1754803522107,8.27412926,4232.1,4232.0,1e-08]
[1754803522304,11.76411163,4232.1,4232.0,1e-08]
[1754803522698,11.75609271,4232.1,4232.0,1e-08]
[1754803524423,0.6897,4232.1,4232.0,1e-08]
[1754803524605,3.9478,4232.1,4232.0,1e-08]
[1754803524917,3.8294,4232.1,4232.0,1e-08]
[1754803525124,4.1639,4232.1,4232.0,1e-08]
[1754803526223,6.52679312,4232.1,4232.0,1e-08]
[1754803526380,7.70548376,4232.1,4232.0,1e-08]
[1754803527332,4.6254,4232.1,4232.0,1e-08]
[1754803527534,4.1639,4232.1,4232.0,1e-08]
[1754803528111,6.52679312,4232.1,4232.0,1e-08]
[1754803528511,6.98829312,4232.1,4232.0,1e-08]
[1754803530497,6.98529312,4232.1,4232.0,1e-08]
[1754803530698,7.93846261,4232.1,4232.0,1e-08]
[1754803533236,11.48846261,4232.1,4232.0,1e-08]
[1754803534263,13.97646261,4232.1,4232.0,1e-08]
[1754803534444,11.48846261,4232.1,4232.0,1e-08]
[1754803534642,11.58310261,4232.1,4231.5,1e-08]
[1754803534957,11.58310261,4232.1,4230.6,0.04]
[1754803534958,2.36361917,4230.8,4230.6,0.04]
[1754803535119,15.3251644,4230.8,4230.6,0.04]
[1754803535313,16.21803875,4230.8,4230.6,0.04]
[1754803535535,16.71959986,4230.8,4230.6,0.04]
[1754803535742,16.21803875,4230.8,4230.6,0.04]
[1754803535938,18.12026208,4230.8,4230.6,0.04]
[1754803536728,17.57126208,4230.8,4230.6,0.04]
[1754803536929,17.10976208,4230.8,4230.6,0.04]
[1754803537134,14.75463875,4230.8,4230.6,0.04]
[1754803537322,15.66903875,4230.8,4230.6,0.04]
[1754803538534,12.39301958,4230.8,4230.6,0.04]
[1754803539350,15.66301917,4230.8,4230.6,0.04]
[1754803540254,12.66301917,4230.8,4230.6,0.04]
[1754803540452,14.20974035,4230.8,4230.6,0.04]
[1754803541427,14.30440035,4230.8,4230.6,0.04]
[1754803541628,14.30440035,4230.8,4230.6,0.041]
[1754803542668,13.38800035,4230.8,4230.6,0.041]
[1754803542870,9.47766,4230.8,4230.6,0.041]
[1754803543170,9.383,4230.8,4230.7,0.4705]
[1754803543851,9.383,4230.8,4230.7,0.8136]
[1754803544866,9.5014,4230.8,4230.7,0.8136]
[1754803545067,9.5014,4230.8,4230.7,0.4705]
[1754803546461,9.5014,4230.8,4230.7,0.001]
[1754803547031,11.86501917,4230.8,4230.7,0.001]
[1754803547332,13.80214062,4230.8,4230.7,0.001]
[1754803547944,13.33194062,4230.8,4230.7,0.001]
[1754803548140,9.5014,4230.8,4230.7,0.001]
[1754803548544,9.5014,4230.8,4230.7,0.4843]
[1754803550254,11.86501917,4230.8,4230.7,0.001]
[1754803553382,12.52186011,4230.8,4230.7,0.001]
[1754803553683,13.01076011,4230.8,4230.7,0.001]
[1754803553843,14.62934636,4230.8,4230.7,0.001]
[1754803554040,17.62934636,4230.8,4230.7,0.001]
[1754803554541,13.43144636,4230.8,4230.7,0.001]
[1754803554875,15.60301862,4230.8,4230.7,0.001]
[1754803555071,15.01441862,4230.8,4230.7,0.001]
[1754803555241,15.13281862,4230.8,4230.7,0.001]
[1754803556149,15.60301862,4230.8,4230.7,0.001]
[1754803556351,16.09191862,4230.8,4230.7,0.001]
[1754803556551,17.93746221,4230.8,4230.7,0.001]
[1754803558078,17.98523308,4230.8,4230.7,1e-08]
[1754803558264,18.48787562,4230.8,4230.7,1e-08]
[1754803558650,5.36367504,4230.7,4230.6,1e-08]
[1754803558848,7.37541758,4230.7,4229.9,0.12]
[1754803559069,2.48246619,4230.0,4229.9,0.12]
[1754803559241,6.22101701,4230.0,4229.9,0.12]
[1754803559440,7.15056619,4230.0,4229.9,0.12]
[1754803560143,6.19146619,4230.0,4229.9,0.12]
[1754803560879,6.66166619,4230.0,4229.9,0.12]
[1754803561077,7.61312196,4230.0,4229.9,0.12]
[1754803561475,8.10202196,4230.0,4229.9,0.12]
[1754803562980,3.43392196,4230.0,4229.9,0.12]
[1754803563176,6.19146619,4230.0,4229.9,0.12]
[1754803565275,3.8274,4230.0,4229.9,0.12]
[1754803566384,3.8274,4230.0,4229.9,0.6033]
[1754803566894,0.1184,4230.0,4229.9,0.6033]
[1754803567059,3.8274,4230.0,4229.9,0.9464]
[1754803569492,0.1184,4230.0,4229.9,0.9464]
[1754803569695,3.8274,4230.0,4229.9,1.28155685]
[1754803569858,0.1184,4230.0,4229.9,3.64567893]
[1754803570062,2.36367657,4230.7,4230.0,2.36404264]
[1754803570262,0.1184,4230.2,4230.0,2.36404264]